bitfinex/quotes_SOLUSD_20251006
["timestamp","ask_amount","ask_price","bid_price","bid_amount"]
[1759768500925,0.66,234.56,234.54,30.08]
[1759768501125,0.66,234.55,234.52,0.2]
[1759768501305,0.66,234.54,234.53,30.08]
[1759768502019,0.66,234.56,234.53,30.08]
[1759768502221,10.87647521,234.55,234.53,30.08]
[1759768502802,0.66,234.55,234.53,30.08]
[1759768503594,0.66,234.55,234.52,0.2]
[1759768503595,0.66,234.54,234.52,0.2]
[1759768503826,0.66,234.57,234.53,30.08]
[1759768503999,10.87647521,234.56,234.53,30.08]
[1759768504201,10.87647521,234.57,234.53,30.08]
[1759768504522,0.66,234.56,234.53,30.08]
[1759768505797,10.87647521,234.59,234.53,34.34374518]
[1759768506221,11.53647521,234.62,234.53,34.34374518]
[1759768506594,10.87647521,234.62,234.53,65.80336228]
[1759768506799,0.66,234.63,234.53,65.80336228]
[1759768507003,0.66,234.62,234.53,55.14374518]
[1759768507217,6.48456576,234.65,234.53,55.14374518]
[1759768507218,13.9275098,234.6,234.53,20.8]
[1759768507413,10.87647521,234.58,234.54,30.08]
[1759768507599,10.87647521,234.56,234.52,0.2]
[1759768507800,10.87647521,234.56,234.53,30.08]
[1759768508003,7.31408428,234.58,234.53,30.08]
[1759768508208,0.66,234.55,234.53,30.08]
[1759768508806,0.66,234.55,234.52,0.2]
[1759768509005,0.66,234.54,234.53,30.08]
[1759768509406,4.26304969,234.58,234.53,30.08]
[1759768509638,10.87647521,234.56,234.53,30.08]
[1759768510207,0.66,234.55,234.53,30.08]
[1759768510926,0.66,234.54,234.53,30.08]
[1759768511141,4.26298679,234.58,234.53,30.08]
[1759768511313,0.66,234.56,234.53,30.08]
[1759768511514,0.66,234.59,234.53,30.08]
[1759768511708,0.66,234.59,234.53,34.34373797]
[1759768511938,0.66,234.59,234.54,30.08]
[1759768513622,10.87647521,234.6,234.54,34.34359055]
[1759768514630,11.53647521,234.6,234.54,30.08]
[1759768515243,3.71103459,234.59,234.55,30.08]
[1759768515741,10.87647521,234.57,234.55,30.08]
[1759768515915,11.53647521,234.56,234.55,30.08]
[1759768518626,10.87647521,234.55,234.52,0.2]
[1759768518823,10.87647521,234.55,234.53,30.08]
[1759768519025,11.59647521,234.54,234.53,30.08]
[1759768519742,0.72,234.54,234.53,30.08]
[1759768522937,10.87647521,234.53,234.52,0.2]
[1759768523247,10.87647521,234.53,234.52,30.28]
[1759768523248,0.72,234.53,234.52,30.28]
[1759768523742,0.72,234.53,234.52,0.2]
[1759768523921,0.72,234.53,234.52,30.28]
[1759768524740,10.87647521,234.57,234.52,30.28]
[1759768524944,0.72,234.57,234.52,34.54398626]
[1759768525945,10.87647521,234.6,234.52,34.54398626]
[1759768526250,0.72,234.57,234.52,34.54398626]
[1759768526850,0.72,234.57,234.52,30.28]
[1759768528045,3.05103459,234.6,234.52,30.28]
[1759768528348,14.6475098,234.59,234.53,30.08]
[1759768528648,0.72,234.58,234.53,30.08]
[1759768528844,0.72,234.57,234.53,30.08]
[1759768529055,0.72,234.56,234.53,30.08]
[1759768529640,15.13929038,234.59,234.53,30.08]
[1759768529828,0.72,234.56,234.53,30.08]
[1759768530235,0.72,234.56,234.54,30.08]
[1759768530449,0.72,234.58,234.54,30.08]
[1759768530652,0.72,234.57,234.54,30.08]
[1759768531750,10.87647521,234.59,234.54,30.08]
[1759768531958,0.72,234.57,234.54,30.08]
[1759768532262,10.87647521,234.65,234.54,45.00275747]
[1759768532439,11.59647521,234.65,234.55,4.7616276]
[1759768532768,13.81957285,234.65,234.55,4.7616276]
[1759768533062,0.72,234.67,234.57,25.5616276]
[1759768533228,0.72,234.67,234.58,30.08]
[1759768533562,2.22285014,234.68,234.59,14.91964703]
[1759768533730,2.94285014,234.68,234.6,4.7616276]
[1759768533922,0.72,234.67,234.61,30.08]
[1759768534967,3.05103459,234.64,234.59,4.7616276]
[1759768535137,3.05103459,234.61,234.6,30.08]
[1759768535326,3.77103459,234.61,234.58,30.08]
[1759768535657,3.77103459,234.6,234.58,30.08]
[1759768535833,0.68,234.59,234.58,30.08]
[1759768536629,3.73103459,234.59,234.58,30.08]
[1759768537151,14.6075098,234.59,234.58,30.08]
[1759768537353,14.6075098,234.59,234.52,4.9616276]
[1759768537538,11.55647521,234.59,234.53,30.06]
[1759768537747,0.68,234.58,234.53,30.06]
[1759768538056,0.68,234.57,234.53,30.06]
[1759768538436,0.68,234.56,234.53,30.06]
[1759768539153,0.68,234.56,234.52,0.2]
[1759768539355,0.68,234.56,234.53,30.06]
[1759768540343,0.68,234.56,234.52,0.2]
[1759768540530,0.68,234.55,234.53,30.06]
[1759768540729,4.94294555,234.58,234.52,0.2]
[1759768540926,0.68,234.57,234.53,30.06]
[1759768542364,10.87647521,234.59,234.53,30.06]
[1759768542560,0.68,234.58,234.53,34.32381423]
[1759768542854,0.68,234.58,234.53,30.06]
[1759768543053,0.68,234.57,234.53,30.06]
[1759768544354,0.68,234.62,234.53,34.32382909]
[1759768544544,10.87647521,234.63,234.53,39.08545669]
[1759768544745,0.68,234.64,234.54,4.7616276]
[1759768544746,10.87647521,234.64,234.54,4.7616276]
[1759768544945,0.68,234.63,234.54,4.7616276]
[1759768545661,4.94210904,234.63,234.55,4.26348326]
[1759768546955,0.68,234.63,234.55,9.02511086]
[1759768547739,0.68,234.63,234.56,30.06]
[1759768548238,4.94204545,234.63,234.56,30.06]
[1759768549055,4.94204545,234.63,234.55,9.02511086]
[1759768549056,4.26204545,234.63,234.55,9.02511086]
[1759768549256,4.26204545,234.63,234.56,30.06]
[1759768549257,0.68,234.62,234.56,30.06]
[1759768550354,4.94223961,234.62,234.56,30.06]
[1759768550555,0.68,234.64,234.56,34.8216276]
[1759768550756,0.68,234.65,234.56,34.8216276]
[1759768551162,0.68,234.65,234.57,4.26311975]
[1759768551867,4.94171637,234.65,234.57,4.26311975]
[1759768552069,0.68,234.64,234.57,4.26311975]
[1759768553160,10.87647521,234.65,234.57,4.26311975]
[1759768553382,1.9518832,234.69,234.57,19.68254672]
[1759768553561,10.87647521,234.72,234.6,25.5616276]
[1759768553871,0.68,234.73,234.62,4.7616276]
[1759768554181,10.87647521,234.75,234.62,4.7616276]
[1759768554360,0.68,234.79,234.65,4.7616276]
[1759768554553,0.68,234.79,234.69,20.8]
[1759768554759,10.87647521,234.78,234.7,30.06]
[1759768554971,0.68,234.77,234.7,30.06]
[1759768555152,1.9518832,234.81,234.7,30.06]
[1759768555358,6.89061406,234.82,234.71,14.91201908]
[1759768555661,10.87647521,234.81,234.71,14.91201908]
[1759768555857,27.69061406,234.82,234.71,14.91201908]
[1759768556066,13.50835841,234.81,234.7,30.06]
[1759768556277,2.6318832,234.8,234.7,34.32075429]
[1759768556483,0.68,234.79,234.7,34.32075429]
[1759768557885,4.93914434,234.79,234.7,34.32075429]
[1759768559877,4.93914434,234.79,234.7,4.26075429]
[1759768560080,4.93918955,234.79,234.71,34.30050873]
[1759768560284,2.22171936,234.8,234.71,34.30050873]
[1759768560674,0.68,234.79,234.71,30.04]
[1759768561087,0.68,234.79,234.71,34.30054952]
[1759768561290,2.22171936,234.8,234.71,44.95199172]
[1759768561786,4.2582932,234.84,234.71,44.95199172]
[1759768561995,25.0582932,234.84,234.71,44.95199172]
[1759768562186,2.90130316,234.85,234.74,20.8]
[1759768562371,0.68,234.84,234.75,30.04]
[1759768562787,0.68,234.84,234.71,25.06054952]
[1759768562975,0.68,234.84,234.75,20.8]
[1759768563182,0.68,234.83,234.76,30.04]
[1759768563779,10.87647521,234.82,234.76,30.04]
[1759768563989,4.25894378,234.8,234.77,30.04]
[1759768564193,0.68,234.79,234.78,30.04]
[1759768565597,15.81506449,234.82,234.78,30.04]
[1759768565787,4.25828355,234.84,234.78,30.04]
[1759768566098,2.90130316,234.85,234.78,30.04]
[1759768566280,2.90130316,234.85,234.78,34.29928534]
[1759768566475,2.22130316,234.85,234.78,34.29928534]
[1759768567686,0.2,234.88,234.81,20.8]
[1759768568199,0.2,234.88,234.81,25.05860429]
[1759768568793,0.2,234.88,234.81,35.70551029]
[1759768571989,0.2,234.88,234.83,4.25839969]
[1759768572305,0.2,234.88,234.87,20.8]
[1759768572688,0.1,234.96,234.87,20.8]
[1759768572878,0.1,234.96,234.91,20.8]
[1759768574087,0.1,234.96,234.93,20.8]
[1759768574291,0.1,234.96,234.94,30.02]
[1759768576383,0.1,234.96,234.94,34.27632667]
[1759768576781,0.1,234.96,234.94,30.02]
[1759768576985,0.1,234.96,234.95,50.82]
[1759768577605,0.1,234.96,234.95,20.8]
[1759768577801,0.1,234.96,234.95,50.82]
[1759768580015,0.1,234.96,234.95,55.07622472]
[1759768580513,0.68,235.02,234.98,20.8]
[1759768580715,0.1,235.03,234.99,30.0]
[1759768580923,0.78,235.03,234.99,30.0]
[1759768581295,0.1,235.03,234.99,30.0]
[1759768582795,0.68,235.02,234.93,20.8]
[1759768583131,0.68,235.02,234.97,20.8]
[1759768583419,0.68,235.01,234.98,30.04]
[1759768584501,4.2551674,235.01,234.98,30.04]
[1759768584703,0.68,235.0,234.98,30.04]
[1759768585291,0.78,235.03,234.98,30.04]
[1759768585491,0.68,235.02,234.98,30.04]
[1759768585714,0.68,235.01,234.98,30.04]
[1759768585894,0.68,235.0,234.98,30.04]
[1759768586208,0.1,235.03,234.98,50.84]
[1759768587301,0.1,235.03,234.98,20.8]
[1759768587506,4.35479405,235.03,234.99,30.02]
[1759768587708,5.03479405,235.03,234.99,30.02]
[1759768588097,0.1,235.03,234.99,30.02]
[1759768590928,0.68,235.02,234.99,30.02]
[1759768591217,0.1,235.03,234.99,30.02]
[1759768591920,0.68,235.02,234.99,30.02]
[1759768592107,4.35479661,235.03,234.99,30.02]
[1759768592701,4.35479661,235.03,234.98,20.8]
[1759768592896,4.35479661,235.03,234.99,30.0]
[1759768593122,4.93501215,235.02,234.99,30.0]
[1759768593310,0.1,235.03,234.99,30.0]
[1759768593513,5.03480428,235.03,234.99,30.0]
[1759768593719,0.68,235.02,234.99,30.0]
[1759768593919,4.35480428,235.03,234.99,30.0]
[1759768594232,0.78,235.03,234.99,30.0]
[1759768595230,0.78,235.03,234.95,12.50438892]
[1759768595231,0.68,235.02,234.95,33.30438892]
[1759768595405,0.68,235.02,234.96,30.0]
[1759768595609,0.1,235.03,234.96,30.0]
[1759768596627,0.1,235.03,234.99,20.8]
[1759768596828,0.1,235.03,235.0,30.0]
[1759768597631,5.07478164,235.03,235.0,30.0]
[1759768598127,0.72,235.02,235.0,30.0]
[1759768598721,0.1,235.03,235.0,30.0]
[1759768599127,5.07479143,235.03,235.0,30.0]
[1759768600121,0.1,235.03,235.0,30.0]
[1759768601548,0.1,235.03,235.02,20.8]
[1759768601702,0.1,235.03,235.02,50.8]
[1759768602111,0.1,235.03,235.0,20.8]
[1759768602310,0.1,235.03,235.01,30.0]
[1759768603240,0.82,235.03,235.01,30.0]
[1759768603438,0.1,235.03,235.01,34.25504158]
[1759768605527,0.1,235.03,235.01,34.25511337]
[1759768606434,0.1,235.03,235.02,29.98]
[1759768606630,0.1,235.03,235.02,50.78]
[1759768606929,0.82,235.03,235.02,20.8]
[1759768607114,0.1,235.03,235.02,50.78]
[1759768608627,0.76,235.03,235.02,29.98]
[1759768609031,0.1,235.03,235.02,29.98]
[1759768609234,0.76,235.03,235.02,29.98]
[1759768610927,0.1,235.03,235.02,29.98]
[1759768612336,0.1,235.03,235.0,25.49007966]
[1759768612337,0.76,235.03,235.0,25.49007966]
[1759768612637,0.1,235.03,235.02,29.98]
[1759768613246,0.1,235.03,235.02,34.67007966]
[1759768613445,0.1,235.03,235.02,29.98]
[1759768613818,0.76,235.03,235.01,4.69007966]
[1759768614039,0.76,235.03,235.02,29.98]
[1759768614040,0.1,235.03,235.02,29.98]
[1759768614643,0.76,235.03,235.02,29.98]
[1759768615036,0.76,235.03,235.0,4.69007966]
[1759768615236,0.76,235.03,235.02,29.98]
[1759768615437,0.1,235.03,235.02,29.98]
[1759768616216,0.76,235.03,235.02,34.67007966]
[1759768616650,0.1,235.03,235.02,29.98]
[1759768616953,0.1,235.03,235.02,34.23495702]
[1759768617522,0.1,235.03,235.02,29.98]
[1759768618144,0.1,235.03,235.02,37.01511949]
[1759768619726,0.76,235.03,235.02,29.98]
[1759768619967,0.1,235.03,235.02,29.98]
[1759768620359,0.1,235.03,235.02,37.01511949]
[1759768620655,0.1,235.03,235.02,34.23495702]
[1759768620946,0.1,235.03,235.02,29.98]
[1759768621541,0.1,235.03,235.02,34.23495702]
[1759768622026,0.1,235.03,235.02,29.98]
[1759768622638,0.1,235.03,235.01,11.29023743]
[1759768622842,0.1,235.03,235.02,29.98]
[1759768624350,0.1,235.03,235.02,37.01511949]
[1759768625246,0.76,235.03,235.02,37.01511949]
[1759768625432,0.1,235.03,235.02,37.01511949]
[1759768626248,0.1,235.06,235.05,20.8]
[1759768626450,0.1,235.06,235.05,189.4338802]
[1759768626832,0.1,235.06,235.05,193.68829415]
[1759768627770,0.1,235.06,235.05,27.9538802]
[1759768627932,0.76,235.06,235.05,50.78]
[1759768630263,0.1,235.06,235.05,55.03441395]
[1759768630632,0.1,235.06,235.05,62.18829415]
[1759768632556,0.1,235.06,235.05,55.03441395]
[1759768633150,0.1,235.07,235.05,55.03441395]
[1759768633474,0.66,235.06,235.04,20.8]
[1759768633648,0.1,235.07,235.05,57.92997719]
[1759768634059,0.66,235.06,235.05,27.94997719]
[1759768634256,0.66,235.06,235.05,29.98]
[1759768635376,0.66,235.06,235.04,20.8]
[1759768635578,0.1,235.07,235.05,34.74681724]
[1759768635750,0.1,235.07,235.06,4.76668592]
[1759768636769,0.76,235.07,235.06,4.76668592]
[1759768637152,0.76,235.07,235.05,4.76668592]
[1759768637341,0.1,235.07,235.06,29.98]
[1759768637855,0.76,235.07,235.06,29.98]
[1759768638553,5.01405198,235.07,235.06,29.98]
[1759768638867,0.76,235.07,235.06,29.98]
[1759768639670,5.01405198,235.07,235.06,29.98]
[1759768639845,0.76,235.07,235.06,29.98]
[1759768641769,5.01405198,235.07,235.06,29.98]
[1759768642750,0.76,235.07,235.06,29.98]
[1759768643769,5.01405198,235.07,235.06,29.98]
[1759768644563,0.1,235.07,235.06,29.98]
[1759768645070,0.8,235.07,235.04,4.76668592]
[1759768645251,0.7,235.06,235.05,29.98]
[1759768645660,0.7,235.06,235.05,34.74668592]
[1759768646062,0.1,235.07,235.05,29.98]
[1759768646246,0.1,235.07,235.06,7.14997719]
[1759768647067,0.1,235.07,235.06,37.12997719]
[1759768647565,0.1,235.07,235.06,41.38421015]
[1759768648670,0.1,235.07,235.06,37.12997719]
[1759768649069,0.1,235.07,235.06,7.14997719]
[1759768649276,0.1,235.07,235.06,29.98]
[1759768649465,0.8,235.07,235.06,29.98]
[1759768650167,5.0540672,235.07,235.04,7.14997719]
[1759768650350,0.7,235.06,235.05,29.98]
[1759768651476,3.73805315,235.06,235.03,4.76938722]
[1759768651778,3.03805315,235.04,234.99,28.8]
[1759768651954,3.03805315,235.02,235.0,28.8]
[1759768652271,10.87647521,235.05,234.92,7.14997719]
[1759768652272,3.73805315,235.01,234.92,7.14997719]
[1759768652472,0.7,235.0,234.95,20.8]
[1759768652677,0.7,234.99,234.96,30.04]
[1759768652876,0.7,234.98,234.96,30.04]
[1759768653078,0.7,234.97,234.91,7.14997719]
[1759768653272,0.7,234.97,234.9,37.41712419]
[1759768653273,0.7,234.97,234.92,30.02]
[1759768653582,0.7,234.97,234.92,50.82]
[1759768653756,0.7,234.96,234.92,50.82]
[1759768653950,0.7,234.98,234.92,30.02]
[1759768654156,0.7,234.98,234.92,50.82]
[1759768654551,10.87647521,235.01,234.92,55.07676739]
[1759768654776,0.7,235.04,234.95,20.8]
[1759768654977,0.7,235.04,234.96,51.5]
[1759768655677,0.7,235.04,234.97,4.25586245]
[1759768655876,0.7,235.04,234.98,30.04]
[1759768656182,0.69,235.03,234.98,30.04]
[1759768656377,0.69,235.02,234.98,30.04]
[1759768656876,0.69,235.01,234.99,30.04]
[1759768657080,0.69,235.0,234.99,30.04]
[1759768657666,0.69,235.04,234.99,30.04]
[1759768657864,0.69,235.03,234.99,30.04]
[1759768658067,0.1,235.07,234.99,30.04]
[1759768658263,0.69,235.06,234.99,34.29540555]
[1759768659382,0.69,235.06,234.99,30.04]
[1759768660283,0.69,235.06,234.99,34.29547985]
[1759768661259,0.69,235.06,234.99,30.04]
[1759768661879,0.1,235.07,234.99,34.29543427]
[1759768662077,0.1,235.07,235.0,0.72]
[1759768662779,0.1,235.07,235.02,20.8]
[1759768662976,0.1,235.07,235.03,30.74]
[1759768663478,0.1,235.07,235.04,0.72]
[1759768663877,0.1,235.07,235.01,0.72]
[1759768664082,0.1,235.07,235.02,30.74]
[1759768664587,0.1,235.07,235.03,0.72]
[1759768664784,0.79,235.07,235.04,30.02]
[1759768665000,0.1,235.07,235.05,30.02]
[1759768665290,0.69,235.06,235.05,30.02]
[1759768665692,0.1,235.07,235.05,30.02]
[1759768665879,0.1,235.07,235.06,4.97423296]
[1759768675584,0.1,235.07,235.06,4.90423296]
[1759768675792,0.1,235.07,235.06,4.25423296]
[1759768677291,0.1,235.07,235.06,4.90423296]
[1759768678808,0.1,235.07,235.06,4.25423296]
[1759768678990,0.1,235.07,235.06,4.90423296]
[1759768679385,0.1,235.07,235.06,8.34092974]
[1759768680189,0.1,235.07,235.06,10.04236958]
[1759768680788,0.1,235.07,235.06,8.34092974]
[1759768680990,0.1,235.07,235.06,7.69092974]
[1759768681678,0.1,235.07,235.06,12.44031388]
[1759768681879,0.1,235.07,235.06,9.0036171]
[1759768682085,0.8,235.07,235.05,25.54938414]
[1759768682285,0.8,235.07,235.06,29.98]
[1759768682595,0.1,235.07,235.06,29.98]
[1759768684007,0.1,235.07,235.06,34.23423296]
[1759768684319,0.2,235.12,235.06,50.2691995]
[1759768684518,0.7,235.2,235.1,25.54938414]
[1759768684697,0.7,235.19,235.14,20.8]
[1759768685020,0.7,235.18,235.15,29.98]
[1759768685200,4.25133917,235.22,235.15,29.98]
[1759768685201,0.7,235.17,235.15,29.98]
[1759768685387,15.22764484,235.23,235.15,29.98]
[1759768685601,0.7,235.22,235.15,29.98]
[1759768685915,0.7,235.21,235.15,29.98]
[1759768686212,0.7,235.2,235.15,29.98]
[1759768686428,0.7,235.19,235.15,29.98]
[1759768686727,0.7,235.18,235.15,29.98]
[1759768686898,0.7,235.17,235.15,29.98]
[1759768687097,0.7,235.16,235.15,20.8]
[1759768687296,0.7,235.16,235.15,50.78]
[1759768688333,4.25135865,235.22,235.15,50.78]
[1759768688627,10.97647521,235.23,235.15,55.03254625]
[1759768688628,0.7,235.2,235.15,55.03254625]
[1759768689223,0.7,235.2,235.15,55.68254625]
[1759768689428,15.22765073,235.23,235.15,55.68254625]
[1759768689429,0.8,235.23,235.16,0.65]
[1759768689622,0.8,235.23,235.17,29.96]
[1759768690343,0.8,235.23,235.17,34.21210557]
[1759768692032,0.8,235.23,235.2,20.8]
[1759768692333,0.1,235.23,235.21,29.96]
[1759768693632,0.1,235.23,235.22,4.90133917]
[1759768694740,0.1,235.23,235.22,25.70133917]
[1759768695033,0.1,235.23,235.22,55.66133917]
[1759768695835,0.1,235.23,235.22,51.41]
[1759768696143,0.1,235.23,235.22,55.66133917]
[1759768696726,0.1,235.23,235.2,1.70042723]
[1759768696921,0.1,235.23,235.21,29.96]
[1759768697238,0.1,235.23,235.22,0.65]
[1759768697611,0.1,235.23,235.21,29.96]
[1759768698030,0.1,235.23,235.22,29.96]
[1759768698634,0.1,235.23,235.21,20.8]
[1759768698837,0.1,235.23,235.22,29.96]
[1759768699241,0.1,235.23,235.21,20.8]
[1759768699424,0.1,235.23,235.2,1.70042723]
[1759768699425,0.1,235.23,235.22,29.96]
[1759768699625,0.1,235.23,235.22,161.46]
[1759768699849,0.76,235.23,235.22,131.5]
[1759768700052,0.76,235.23,235.22,182.26]
[1759768700262,0.1,235.23,235.22,182.26]
[1759768703154,0.76,235.23,235.22,182.26]
[1759768703556,0.1,235.23,235.22,152.3]
[1759768703755,0.1,235.23,235.22,182.26]
[1759768705663,0.76,235.23,235.22,161.46]
[1759768706034,5.01115844,235.23,235.22,131.5]
[1759768706239,5.01115844,235.23,235.22,161.46]
[1759768706448,0.76,235.23,235.22,161.46]
[1759768707065,0.76,235.23,235.19,20.8]
[1759768707231,0.1,235.23,235.22,20.8]
[1759768707438,0.1,235.23,235.22,50.76]
[1759768708156,0.1,235.23,235.22,55.01133917]
[1759768708667,0.1,235.23,235.22,50.76]
[1759768709764,0.1,235.23,235.22,51.41]
[1759768709959,0.1,235.23,235.22,56.15938414]
[1759768710259,0.1,235.23,235.22,51.41]
[1759768710640,0.1,235.23,235.22,55.66133917]
[1759768711148,0.1,235.23,235.22,60.39600775]
[1759768711347,0.1,235.23,235.22,25.70133917]
[1759768711545,0.1,235.23,235.22,60.39600775]
[1759768711950,0.1,235.23,235.22,59.74600775]
[1759768712159,0.1,235.23,235.22,60.39600775]
[1759768713465,0.1,235.23,235.22,62.09621815]
[1759768714465,0.1,235.23,235.22,57.36154957]
[1759768714660,0.1,235.23,235.22,56.71154957]
[1759768715559,0.1,235.23,235.22,29.96]
[1759768715560,0.76,235.23,235.22,29.96]
[1759768715762,0.1,235.23,235.22,29.96]
[1759768716148,0.1,235.23,235.22,20.8]
[1759768716149,0.78,235.23,235.22,20.8]
[1759768716456,0.78,235.23,235.22,50.76]
[1759768718152,0.78,235.23,235.22,20.8]
[1759768718363,0.78,235.23,235.22,50.76]
[1759768720348,5.03115844,235.23,235.22,29.96]
[1759768721169,5.03115844,235.23,235.17,20.8]
[1759768721473,0.68,235.22,235.18,29.96]
[1759768721772,0.68,235.21,235.18,29.96]
[1759768721969,0.68,235.2,235.18,29.96]
[1759768722271,0.68,235.19,235.18,29.96]
[1759768726945,4.93188145,235.19,235.18,29.96]
[1759768728965,4.93188145,235.19,235.15,20.8]
[1759768729162,0.68,235.19,235.16,29.96]
[1759768729562,0.72,235.21,235.16,29.96]
[1759768729757,0.72,235.2,235.16,29.96]
[1759768730148,0.72,235.19,235.16,29.96]
[1759768730680,0.72,235.19,235.15,20.8]
[1759768730888,0.72,235.19,235.16,29.96]
[1759768732180,4.25191836,235.19,235.16,29.96]
[1759768732491,0.72,235.18,235.15,20.8]
[1759768732782,0.72,235.17,235.16,29.96]
[1759768734175,4.97224305,235.17,235.16,29.96]
[1759768735982,18.63701623,235.17,235.09,4.73466858]
[1759768736172,3.75416554,235.16,235.09,4.73466858]
[1759768736372,4.97260472,235.15,235.1,29.96]
[1759768736575,0.72,235.14,235.1,29.96]
[1759768736881,0.72,235.13,235.11,29.96]
[1759768737090,0.72,235.12,235.11,29.96]
[1759768737890,4.97314732,235.12,235.11,29.96]
[1759768738787,4.25314732,235.12,235.11,29.96]
[1759768739085,0.72,235.12,235.11,29.96]
[1759768739892,4.97314732,235.12,235.11,29.96]
[1759768740191,4.97133917,235.22,235.14,20.8]
[1759768740370,4.97133917,235.22,235.15,29.96]
[1759768740582,0.72,235.21,235.16,29.96]
[1759768740890,0.72,235.2,235.16,29.96]
[1759768741083,0.1,235.24,235.17,0.68]
[1759768741995,4.35119215,235.23,235.17,0.68]
[1759768742299,5.07119215,235.23,235.17,0.68]
[1759768742897,5.07119215,235.23,235.16,29.96]
[1759768743402,0.1,235.23,235.17,0.68]
[1759768744107,0.1,235.23,235.17,2.38086106]
[1759768744474,0.1,235.23,235.17,6.6331025]
[1759768744681,0.1,235.23,235.18,0.68]
[1759768745012,0.1,235.23,235.19,30.64]
[1759768745300,0.1,235.23,235.22,20.8]
[1759768745616,0.1,235.23,235.22,50.76]
[1759768745905,0.1,235.23,235.22,51.44]
[1759768746100,0.1,235.23,235.22,55.69133917]
[1759768746600,0.1,235.23,235.22,51.44]
[1759768747081,0.1,235.23,235.22,55.69133917]
[1759768748691,0.1,235.27,235.26,20.8]
[1759768748886,0.1,235.27,235.26,50.76]
[1759768749093,0.1,235.27,235.26,51.44]
[1759768749293,0.1,235.27,235.26,53.14013813]
[1759768749474,0.1,235.27,235.26,1.70013813]
[1759768749681,0.1,235.27,235.26,29.96]
[1759768752123,0.1,235.27,235.26,34.89061633]
[1759768752323,0.1,235.27,235.26,39.63831455]
[1759768752520,0.1,235.27,235.26,34.89061633]
[1759768752907,0.1,235.3,235.29,20.8]
[1759768753107,0.1,235.3,235.29,50.74]
[1759768753310,0.1,235.3,235.29,54.73338205]
[1759768753610,0.1,235.3,235.29,65.60985726]
[1759768753820,0.1,235.31,235.29,65.60985726]
[1759768753821,0.1,235.31,235.3,4.24989375]
[1759768754006,0.1,235.31,235.3,8.99759197]
[1759768754212,0.1,235.31,235.3,4.92989375]
[1759768754411,0.72,235.39,235.33,20.8]
[1759768754607,0.72,235.39,235.33,50.74]
[1759768755020,0.72,235.39,235.33,52.43963245]
[1759768755414,4.96827661,235.39,235.33,52.43963245]
[1759768757417,0.72,235.39,235.33,56.68898442]
[1759768758030,4.96829318,235.39,235.33,52.43963245]
[1759768759335,0.72,235.39,235.33,52.43963245]